[Event "55th Biel Festival MTO 2022"]
[Site "Biel"]
[Date "2022.07.20"]
[Round "7.1"]
[White "Aryan Chopra"]
[Black "Alekseenko Kirill"]
[Result "0-1"]
[ECO "A29"]
[WhiteElo "2610"]
[BlackElo "2708"]
[Annotator "TA"]
[PlyCount "124"]
[EventDate "2022.07.13"]
[EventType "swiss"]
[EventCountry "SUI"]
[SourceTitle "playchess.com"]
[Source "ChessBase"]
[SourceQuality "1"]
[TimeControl "40/5400+30:1800+30"]

{[%evp 17,124,6,38,30,56,51,112,110,112,108,245,271,212,218,223,222,268,264,279,278,275,270,260,257,264,230,222,-197,-197,-237,-122,-233,-234,-225,-216,-237,-234,-330,-330,-330,-330,-330,-313,-399,-360,-341,-386,-374,-375,-263,-357,-309,0,0,0,-409,-391,-404,-372,-339,-328,-840,-778,-12836,0,-304,0,-12836,-2350,-12840,-12840,-12842,-12842,-12844,-12844,-12845,-12845,-12848,-12847,-12850,-27999,-27999,-27999,-27999,-27999,-27999,-27999,-27999,-27999,-27999,-27999,-27999,-27999,-27999,-27999,-27999,-27999,-27999,-27999,-27999,-27999,-27999,-27999,-27999,-27999,-27999,-27999,-27999,-27999]} 1. c4 {[%emt 0:00:03]} e5 {[%emt 0:02:00]} 2. Nc3 {[%emt 0:00:05]} Nf6 {[%emt 0:01:43]} 3. Nf3 {[%emt 0:00:06]} Nc6 {[%emt 0:00:33]} 4. g3 {[%emt 0:00:26]} Bb4 {[%emt 0:01:29]} 5. Bg2 {[%emt 0:00:11]} O-O {[%emt 0:02:25]} 6. O-O {[%emt 0:00:10]} e4 {[%emt 0:07:57]} 7. Ng5 {[%emt 0:00:19]} Bxc3 {[%emt 0:00:23]} 8. bxc3 {[%emt 0:00:06]} Re8 {[%emt 0:00:45]} 9. f3 {[%emt 0:00:51]} e3 {[%emt 0:00:57]} 10. d3 {[%emt 0:00:48] [#] A29: English Opening: Four Knights Variation with 4 g3.} h6 $1 $146 {[%emt 0:12:04][%mdl 8] A top novelty.} ({Predecessor:} 10... d5 11. Qa4 h6 12. cxd5 Nxd5 13. Ne4 f5 14. Nc5 f4 15. Ne4 Rb8 16. Qd1 b5 17. a3 a5 {½-½ (36) Ding,L (2809)-Yu,Y (2751) Shenzhen 2019}) 11. Ne4 {[%emt 0:00:36]} d5 {[%emt 0:00:26]} ({Better is} 11... Nxe4 $14 12. fxe4 d6) 12. Nxf6+ $16 {[%emt 0:04:22] White is better.} Qxf6 {[%emt 0:02:29]} 13. cxd5 {[%emt 0:01:01][%cal Bc4d5,Bd5c6,Bc6b7][%mdl 32]} Qxc3 {[%emt 0:10:51] [#]} (13... Ne7 $16) 14. dxc6 $1 $18 {[%emt 0:03:48]} Qxa1 {[%emt 0:01:34] [#]} 15. cxb7 $1 {[%emt 0:00:05]} Bxb7 {[%emt 0:00:11]} 16. Qb3 {[%emt 0:00:06]} Rab8 {[%emt 0:08:14][%cal Ob7f3,Ba8b8,Bb8b3,Bb3d3,Bd3d1,Bd1f1][%mdl 32]} 17. Bb2 {[%emt 0:00:14]} Bd5 {[%emt 0:00:15]} 18. Rxa1 {[%emt 0:03:13]} (18. Bxa1 Bxb3 19. axb3 Rxb3 $18) 18... Bxb3 {[%emt 0:01:29]} 19. axb3 {[%emt 0:00:04]} Rxb3 {[%emt 0:06:55]} 20. Bd4 {[%emt 0:00:08]} a5 {[%emt 0:04:36]} 21. f4 {[%emt 0:06:10] Strongly threatening Bd5.} (21. Rxa5 Rb1+ 22. Bf1 f6 $18) 21... Reb8 {[%emt 0:01:17]} 22. Rxa5 $4 {[%emt 0:07:33][%mdl 8192] [#]} (22. Bxe3 Rb1+ 23. Rxb1 Rxb1+ 24. Kf2 a4) (22. Bd5 $18 {and life is good for White.} Rb1+ 23. Rxb1 Rxb1+ 24. Kg2) 22... Rxd3 $19 {[%emt 0:01:27][%mdl 512]} 23. Ba7 {[%emt 0:11:05]} (23. exd3 {gets mated.} Rb1+ 24. Bf1 e2 25. Ra8+ Kh7 26. Kf2 exf1=Q+ 27. Ke3 Re1+ 28. Kd2 Rd1+ 29. Kc3 Qxd3+ 30. Kb4 Qxd4+ 31. Ka3 Rb1) (23. Bxe3 Rxe3) 23... Rd1+ {[%emt 0:03:51]} 24. Bf1 {[%emt 0:00:01]} Rbb1 {[%emt 0:02:08]} 25. Bxe3 {[%emt 0:00:06]} Rxf1+ {[%emt 0:00:38][%mdl 4096] Endgame KRR-KRB} 26. Kg2 {[%emt 0:00:01]} Rfd1 {[%emt 0:00:47]} 27. Rc5 {[%emt 0:00:30]} (27. Ra2 $142) 27... Rb2 {[%emt 0:06:18]} 28. Kf3 {[%emt 0:01:51]} Re1 {[%emt 0:04:52]} 29. Bd4 {[%emt 0:08:06]} Rd2 {[%emt 0:00:43]} ({And not} 29... Rbxe2 30. Bf2 $15) 30. e3 {[%emt 0:00:14]} Rxh2 {[%emt 0:03:04]} 31. Rxc7 {[%emt 0:00:04]} Rf1+ {[%emt 0:02:21]} 32. Ke4 {[%emt 0:00:46]} Rg2 {[%emt 0:01:28]} 33. Rc8+ {[%emt 0:00:08]} Kh7 {[%emt 0:00:04]} 34. Rc7 {[%emt 0:00:04]} Kg8 {[%emt 0:03:26]} ({But not} 34... Rxg3 $2 35. Rxf7 Kg8 36. Rf5 $19) 35. Rc8+ {[%emt 0:00:05]} Kh7 {[%emt 0:00:03]} 36. Rc7 {[%emt 0:00:04]} Rxg3 {[%emt 0:03:32] ...Kg6 is the strong threat.} 37. Rxf7 {[%emt 0:00:05]} h5 {[%emt 0:00:18][%cal Bh6h5,Bh5h4][%mdl 32]} 38. Rf5 {[%emt 0:01:04]} Rh1 {[%emt 0:00:53] And now ...Rg6 would win.} 39. Be5 $2 {[%emt 0:00:13]} (39. Ra5) 39... Kg8 {[%emt 0:01:57]} 40. Bd4 {[%emt 0:04:30]} Kh7 $2 {[%emt 0:03:23]} (40... h4 41. Rh5 h3) 41. Be5 $1 {[%emt 0:30:24]} Kg8 $2 {[%emt 0:07:29]} (41... Rg4 42. Kf3 Rg6) 42. Bd4 {[%emt 0:00:00]} h4 {[%emt 0:03:22]} 43. Rh5 {[%emt 0:00:00]} h3 {[%emt 0:00:34]} 44. f5 {[%emt 0:00:00]} h2 {[%emt 0:01:35]} 45. Be5 {[%emt 0:00:00]} Rg4+ {[%emt 0:01:06]} 46. Kf3 {[%emt 0:00:00] [#]} Rg5 $3 {[%emt 0:00:11][%mdl 512]} 47. Rxh2 {[%emt 0:00:00]} (47. Rxg5 Rf1+) 47... Rxh2 {[%emt 0:02:24]} 48. Bxh2 {[%emt 0:00:00]} Rxf5+ {[%emt 0:00:03] KR-KB} 49. Kg4 {[%emt 0:00:00] Black mates.} Rf1 {[%emt 0:00:54]} 50. e4 {[%emt 0:00:00]} Kf7 {[%emt 0:00:36]} 51. Be5 {[%emt 0:00:00]} Kg6 {[%emt 0:00:12]} 52. Bd4 {[%emt 0:00:00]} Rd1 {[%emt 0:01:08]} 53. Bc3 {[%emt 0:00:00]} Rg1+ {[%emt 0:02:57]} 54. Kf4 {[%emt 0:00:00]} Kh5 {[%emt 0:01:18]} 55. e5 {[%emt 0:00:00]} g5+ {[%emt 0:06:35][%cal Bg7g5,Bg5g4,Bg4g3][%mdl 32]} 56. Ke3 {[%emt 0:00:00]} Rb1 {[%emt 0:02:02]} 57. Ke4 {[%emt 0:00:00]} Kg6 {[%emt 0:00:31]} 58. e6 {[%emt 0:00:45]} Rf1 {[%emt 0:00:15]} 59. Kd5 {[%emt 0:09:04]} g4 {[%emt 0:02:08]} 60. Be5 {[%emt 0:00:04]} Rd1+ {[%emt 0:00:56]} 61. Ke4 {[%emt 0:00:43]} Re1+ {[%emt 0:00:12]} 62. Kf4 {[%emt 0:00:09]} g3 $1 {[%emt 0:00:14] Weighted Error Value: White=0.48/Black=0.36} 0-1

[Event "55th Biel Festival MTO 2022"]
[Site "Biel"]
[Date "2022.07.20"]
[Round "7.2"]
[White "Motylev Alexander"]
[Black "Visakh N R"]
[Result "1/2-1/2"]
[ECO "E48"]
[WhiteElo "2632"]
[BlackElo "2503"]
[Annotator "TA"]
[PlyCount "43"]
[EventDate "2022.07.13"]
[EventType "swiss"]
[EventCountry "SUI"]
[SourceTitle "playchess.com"]
[Source "ChessBase"]
[SourceQuality "1"]
[TimeControl "40/5400+30:1800+30"]

{[%evp 16,43,0,0,7,0,32,41,38,29,33,47,41,0,37,41,46,18,27,37,30,16,13,20,21,9,0,0,0,6]} 1. d4 {[%emt 0:00:06]} Nf6 {[%emt 0:00:10]} 2. c4 {[%emt 0:00:07]} e6 {[%emt 0:00:05]} 3. Nc3 {[%emt 0:00:05]} Bb4 {[%emt 0:00:06]} 4. e3 {[%emt 0:00:29]} O-O {[%emt 0:00:20]} 5. Bd3 {[%emt 0:00:19]} d5 {[%emt 0:00:29]} 6. cxd5 {[%emt 0:00:21]} exd5 {[%emt 0:00:07]} 7. Nge2 {[%emt 0:00:18]} Re8 {[%emt 0:04:10]} 8. O-O {[%emt 0:00:48]} Bf8 {[%emt 0:06:54]} 9. a3 {[%emt 0:01:50]} a5 {[%emt 0:00:46] E48: Nimzo-Indian: Rubinstein: 5 Bd3 d5 including 6 Ne2, but excluding 6 a3.} 10. Qc2 {[%emt 0:06:28] [#]} b6 $5 $146 {[%emt 0:11:53][%mdl 8] New and interesting.} ({Predecessor:} 10... Na6 11. b3 g6 12. Re1 c6 13. Ng3 Nc7 14. f3 Ne6 15. Bb2 b6 16. Nce2 Bb7 {1-0 (96) Aleksandrov,A (2554)-Maiorov,N (2520) Viljandi 2014}) 11. e4 {[%emt 0:05:59]} dxe4 {[%emt 0:10:39] White is slightly better.} 12. Nxe4 {[%emt 0:00:51]} h6 {[%emt 0:00:22]} 13. Nxf6+ {[%emt 0:22:43]} Qxf6 {[%emt 0:00:11]} 14. Bh7+ {[%emt 0:00:36]} Kh8 {[%emt 0:00:03] [#] ...g6 is the strong threat.} 15. Be4 {[%emt 0:00:08]} Ra7 {[%emt 0:01:10]} 16. Bf4 {[%emt 0:10:04]} Bd6 {[%emt 0:00:57]} 17. Bxd6 {[%emt 0:02:51]} Qxd6 {[%emt 0:00:09]} 18. Nc3 {[%emt 0:01:25] [#] Hoping for Nb5.} c6 {[%emt 0:06:22] Inhibits Nb5. The position is equal.} 19. d5 {[%emt 0:07:59] Strongly threatening dxc6.} Ba6 {[%emt 0:00:20]} 20. Bd3 {[%emt 0:13:58]} Bxd3 {[%emt 0:03:08]} 21. Qxd3 {[%emt 0:01:51]} Rd7 {[%emt 0:05:17][%cal Rc6d5]} 22. Rad1 {[%emt 0:00:07] Weighted Error Value: White=0.08 (flawless) /Black=0.04 (flawless)} 1/2-1/2

[Event "55th Biel Festival MTO 2022"]
[Site "Biel"]
[Date "2022.07.20"]
[Round "7.3"]
[White "Ganguly Surya Shekhar"]
[Black "Fedoseev Vladimir"]
[Result "1/2-1/2"]
[ECO "B45"]
[WhiteElo "2608"]
[BlackElo "2686"]
[Annotator "TA"]
[PlyCount "48"]
[EventDate "2022.07.13"]
[EventType "swiss"]
[EventCountry "SUI"]
[SourceTitle "playchess.com"]
[Source "ChessBase"]
[SourceQuality "1"]
[TimeControl "40/5400+30:1800+30"]

{[%evp 15,48,28,34,40,40,40,40,30,36,27,37,33,55,60,55,56,54,57,40,53,57,41,55,45,43,50,51,53,58,16,34,4,23,14,16]} 1. e4 {[%emt 0:00:20]} c5 {[%emt 0:00:49]} 2. Nf3 {[%emt 0:00:08]} e6 {[%emt 0:00:07]} 3. Nc3 {[%emt 0:00:19]} Nc6 {[%emt 0:00:44]} 4. d4 {[%emt 0:00:08]} cxd4 {[%emt 0:00:06]} 5. Nxd4 {[%emt 0:00:04]} Nf6 {[%emt 0:00:11]} 6. Nxc6 {[%emt 0:00:29]} bxc6 {[%emt 0:00:08]} 7. e5 {[%emt 0:00:03]} Nd5 {[%emt 0:00:10]} 8. Ne4 {[%emt 0:00:05]} Bb7 {[%emt 0:00:08]} 9. Be2 $1 {[%emt 0:01:04] 9.Be2 scores better than 9.c4. B45: Sicilian Four Knights.} c5 {[%emt 0:00:08]} 10. O-O {[%emt 0:00:11]} Qc7 {[%emt 0:00:07]} 11. Nd6+ {[%emt 0:00:30] White is slightly better.} Bxd6 {[%emt 0:00:06]} 12. exd6 {[%emt 0:00:05]} Qc6 {[%emt 0:00:08]} (12... Qxd6 $2 13. c4 $18) 13. f3 {[%emt 0:00:11]} e5 {[%emt 0:00:07]} (13... Qxd6 $2 14. c4 $18) 14. c4 {[%emt 0:03:00]} Nf4 {[%emt 0:00:07]} 15. Bxf4 {[%emt 0:01:13]} exf4 {[%emt 0:00:01]} 16. Qd2 {[%emt 0:05:16]} O-O $1 {[%emt 0:00:07]} 17. Qxf4 {[%emt 0:01:43]} Rae8 {[%emt 0:06:38]} 18. Bd3 {[%emt 0:06:50]} Re6 $1 {[%emt 0:00:11]} 19. Rad1 $36 {[%emt 0:03:45][%mdl 2048] Black is under pressure.} g6 {[%emt 0:00:52] Inhibits Bf5.} 20. Be4 {[%emt 0:03:58]} Qa6 {[%emt 0:00:09][%csl LRa2,LRc4]} 21. Bxb7 {[%emt 0:00:33]} Qxb7 {[%emt 0:00:03] [#]} 22. Rd2 $146 {[%emt 0:01:00]} ({Predecessor:} 22. b3 Rfe8 23. h3 Re2 24. Rf2 Qb4 25. Qc1 Qe1+ 26. Rxe1 Rxe1+ 27. Qxe1 Rxe1+ 28. Kh2 Rd1 29. Re2 Rxd6 30. Re5 {½-½ (30) Malyshev,V (2269)-Frendzas,P (2245) ICCF email 2021}) 22... Rfe8 {[%emt 0:00:33]} 23. h4 {[%emt 0:03:13]} Re5 {[%emt 0:02:34]} 24. Rfd1 {[%emt 0:06:57]} a5 {[%emt 0:04:50] Weighted Error Value: White=0.07 (flawless) /Black=0.04 (flawless)} 1/2-1/2

[Event "55th Biel Festival MTO 2022"]
[Site "Biel"]
[Date "2022.07.20"]
[Round "7.4"]
[White "Pranav Anand"]
[Black "Sargsyan Shant"]
[Result "1/2-1/2"]
[ECO "E04"]
[WhiteElo "2463"]
[BlackElo "2661"]
[Annotator "TA"]
[PlyCount "54"]
[EventDate "2022.07.13"]
[EventType "swiss"]
[EventCountry "SUI"]
[SourceTitle "playchess.com"]
[Source "ChessBase"]
[SourceQuality "1"]
[TimeControl "40/5400+30:1800+30"]

{[%evp 10,54,22,0,0,0,0,0,4,2,6,18,23,16,13,1,22,23,27,3,15,0,13,19,14,5,9,7,12,0,23,0,0,0,0,0,0,0,0,-44,-65,-63,-22,-60,-34,-60,-18]} 1. d4 {[%emt 0:00:05]} d5 {[%emt 0:02:08]} 2. c4 {[%emt 0:00:09]} e6 {[%emt 0:00:17]} 3. Nf3 {[%emt 0:00:05]} Nf6 {[%emt 0:00:35]} 4. g3 {[%emt 0:00:14]} dxc4 {[%emt 0:00:19]} 5. Bg2 {[%emt 0:00:04]} a6 {[%emt 0:00:09]} 6. Ne5 {[%emt 0:00:17][%mdl 1024] White has compensation.} Bb4+ {[%emt 0:01:05] E04: Open Catalan: 5 Nf3.} 7. Nc3 {[%emt 0:00:10] [#] And now Qa4+ would win.} Nd5 {[%emt 0:00:56]} 8. O-O {[%emt 0:00:04]} O-O {[%emt 0:00:51] The position is equal.} 9. Ne4 $1 {[%emt 0:00:52][%mdl 4] outshines the older 9.Qc2.} b5 {[%emt 0:00:41]} 10. b3 {[%emt 0:00:05]} cxb3 {[%emt 0:01:14]} 11. axb3 {[%emt 0:00:04]} Bb7 {[%emt 0:01:34]} 12. Nd3 {[%emt 0:02:28]} Nd7 {[%emt 0:00:46]} 13. Nxb4 {[%emt 0:01:01]} Nxb4 {[%emt 0:00:07] [#]} 14. Bg5 $146 {[%emt 0:00:03]} ({Predecessor:} 14. Ba3 a5 15. Qd2 c5 16. Rfc1 Bxe4 17. Bxe4 Rc8 18. Bb7 Rc7 19. Bg2 Nf6 20. Bb2 cxd4 21. Rxc7 Qxc7 {½-½ (29) Ruefenacht,M (2510)-Mahnke,R (2534) GER email 2015}) 14... Qe8 {[%emt 0:02:42]} 15. Rc1 {[%emt 0:06:42]} Rc8 {[%emt 0:07:08]} 16. Qd2 {[%emt 0:10:12]} Nd5 {[%emt 0:02:25]} 17. Nc5 {[%emt 0:11:18]} Nxc5 {[%emt 0:00:50]} 18. Rxc5 {[%emt 0:00:02]} f6 {[%emt 0:08:59]} 19. Bf4 {[%emt 0:00:44][%cal Of4c7]} Qf7 {[%emt 0:00:20]} 20. Rfc1 {[%emt 0:02:50][%cal Of4c7]} c6 {[%emt 0:01:06]} 21. Qe1 {[%emt 0:12:30]} Nxf4 {[%emt 0:11:46]} 22. gxf4 {[%emt 0:00:17]} e5 {[%emt 0:00:37]} 23. fxe5 {[%emt 0:02:45]} fxe5 {[%emt 0:01:05]} 24. dxe5 {[%emt 0:00:33]} (24. Rxe5 $5 {[%cal Rb3b4]} Rcd8 25. e3 $11) 24... Qxb3 {[%emt 0:01:00]} 25. e3 {[%emt 0:04:53]} Qd3 {[%emt 0:10:06]} 26. Qb4 {[%emt 0:04:11]} Rce8 {[%emt 0:05:39]} 27. Qh4 {[%emt 0:02:40] [#] aiming for Be4.} g6 {[%emt 0:19:15] Weighted Error Value: White=0.09 (flawless) /Black=0.06 (flawless)} 1/2-1/2

[Event "55th Biel Festival MTO 2022"]
[Site "Biel"]
[Date "2022.07.20"]
[Round "7.5"]
[White "Iniyan P"]
[Black "Sethuraman S.P."]
[Result "1/2-1/2"]
[ECO "D38"]
[WhiteElo "2533"]
[BlackElo "2623"]
[Annotator "TA"]
[PlyCount "50"]
[EventDate "2022.07.13"]
[EventType "swiss"]
[EventCountry "SUI"]
[SourceTitle "playchess.com"]
[Source "ChessBase"]
[SourceQuality "1"]
[TimeControl "40/5400+30:1800+30"]

{[%evp 14,50,37,17,15,-8,-1,-15,43,30,30,15,19,21,52,58,51,48,79,50,39,46,50,34,70,45,47,27,27,28,29,27,27,30,19,0,0,0,0]} 1. d4 {[%emt 0:06:57]} Nf6 {[%emt 0:00:03]} 2. c4 {[%emt 0:00:11]} e6 {[%emt 0:00:04]} 3. Nf3 {[%emt 0:00:37]} d5 {[%emt 0:00:06]} 4. Nc3 {[%emt 0:00:32]} Bb4 {[%emt 0:00:08]} 5. cxd5 {[%emt 0:01:44]} exd5 {[%emt 0:00:08]} 6. Bg5 {[%emt 0:00:06][%cal Bc1g5,Bg5h4,Bh4g3][%mdl 32]} h6 {[%emt 0:00:06]} 7. Bh4 {[%emt 0:00:06]} c5 {[%emt 0:00:14]} 8. e3 {[%emt 0:00:08]} c4 {[%emt 0:00:52] D38: Queen's Gambit Declined: Ragozin Defence (4 Nf3 Bb4).} 9. Qc2 {[%emt 0:04:00]} g5 {[%emt 0:06:04]} 10. Bg3 {[%emt 0:00:09] [#]} Be6 $146 {[%emt 0:10:38]} (10... Nc6 $11) ({Predecessor:} 10... Ne4 11. Bxc4 Qa5 12. Bd3 Nxc3 13. O-O Qa4 14. Rfc1 Nc6 15. bxc3 Qxc2 16. Rxc2 Ba3 {1-0 (55) Gustafsson,J (2603)-Dizdar,G (2541) Turin 2006}) 11. Be2 {[%emt 0:09:32]} (11. Ne5 $5 {[%cal Rc2a4]}) 11... Nc6 {[%emt 0:02:30]} 12. O-O {[%emt 0:01:43]} Bxc3 {[%emt 0:02:34]} 13. bxc3 {[%emt 0:00:08]} Ne4 {[%emt 0:00:08]} 14. Nd2 $1 {[%emt 0:04:38]} Nxd2 {[%emt 0:18:35]} 15. Qxd2 {[%emt 0:00:14]} h5 {[%emt 0:00:04][%cal Bh6h5,Bh5h4,Bh4h3][%mdl 32] [#] Hoping for ...h4.} 16. f3 {[%emt 0:08:22]} h4 {[%emt 0:01:39]} 17. Bf2 {[%emt 0:00:08]} f5 {[%emt 0:00:40] Inhibits e4.} 18. e4 {[%emt 0:02:54]} f4 {[%emt 0:01:08]} 19. Qc2 {[%emt 0:06:02]} Qd7 {[%emt 0:07:45]} 20. Bxc4 {[%emt 0:21:09]} dxc4 {[%emt 0:01:36]} 21. d5 {[%emt 0:00:08]} h3 $1 {[%emt 0:08:19]} 22. dxc6 {[%emt 0:00:13]} Qxc6 {[%emt 0:00:39] [#] Strongly threatening ...hxg2.} 23. g4 {[%emt 0:01:36] aiming for a4.} fxg3 $1 {[%emt 0:03:15]} 24. Bxg3 {[%emt 0:00:11]} O-O-O {[%emt 0:00:06]} 25. Qf2 {[%emt 0:02:21]} b6 {[%emt 0:06:03] Weighted Error Value: White=0.10 (very precise) /Black=0.12 (very precise)} 1/2-1/2

[Event "55th Biel Festival MTO 2022"]
[Site "Biel"]
[Date "2022.07.20"]
[Round "7.7"]
[White "Huschenbeth Niclas"]
[Black "Muradli Mahammad"]
[Result "0-1"]
[ECO "B96"]
[WhiteElo "2610"]
[BlackElo "2523"]
[Annotator "TA"]
[PlyCount "122"]
[EventDate "2022.07.13"]
[EventType "swiss"]
[EventCountry "SUI"]
[SourceTitle "playchess.com"]
[Source "ChessBase"]
[SourceQuality "1"]
[TimeControl "40/5400+30:1800+30"]

{[%evp 17,122,25,27,-70,0,24,27,10,3,0,9,7,0,0,0,0,0,0,0,0,0,0,0,0,0,0,0,-35,0,0,0,0,39,39,40,0,16,21,25,8,6,6,13,0,0,0,3,0,0,0,0,0,0,0,0,0,0,0,159,-176,-156,-171,-155,-283,-265,-296,-286,-271,-264,-312,-312,-312,-293,-315,-300,-293,-291,-308,-283,-276,-221,-221,-221,-214,-214,-214,-207,-207,-199,-956,-880,-5106,-1800,-4766,-3586,-1377,-1306,-29954,-29956,-29948,-29949,-11073,-9835,-6631,-5273,-2180,-1907]} 1. e4 {[%emt 0:00:28]} c5 {[%emt 0:07:19]} 2. Nf3 {[%emt 0:00:06]} d6 {[%emt 0:00:07]} 3. d4 {[%emt 0:00:04]} cxd4 {[%emt 0:00:10]} 4. Nxd4 {[%emt 0:00:05]} Nf6 {[%emt 0:00:13]} 5. Nc3 {[%emt 0:00:06]} a6 {[%emt 0:00:08]} 6. Bg5 {[%emt 0:00:07]} Nbd7 {[%emt 0:00:31]} 7. Qe2 {[%emt 0:00:06]} e6 {[%emt 0:00:09]} 8. f4 {[%emt 0:00:37]} Qc7 {[%emt 0:00:19]} 9. O-O-O {[%emt 0:00:12]} b5 {[%emt 0:00:08]} 10. f5 {[%emt 0:00:37] B96: Sicilian Najdorf: 6 Bg5 e6 7 f4, lines other than 7...Qb6 and 7...Be7.} (10. a3 $11) 10... e5 {[%emt 0:00:22] 10...b4 is not played anymore.} (10... b4 $1 $15 11. fxe6 bxc3 12. exd7+ Bxd7) 11. Nd5 $11 {[%emt 0:00:00]} Nxd5 {[%emt 0:00:36]} 12. exd5 {[%emt 0:00:00][%cal Od4e6] White has an edge.} Nb6 {[%emt 0:00:18] [#]} 13. Qh5 $1 {[%emt 0:00:01] Strongly threatening Ne6.} Be7 {[%emt 0:00:40] [#]} (13... g6 14. fxg6) 14. Bd3 $1 {[%emt 0:00:21]} h6 {[%emt 0:00:25] [#]} 15. h4 $146 {[%emt 0:00:31] Ne6 is the strong threat.} ({Predecessor:} 15. Bxe7 Qxe7 16. Kb1 O-O 17. Nc6 Qc7 18. Qf3 Bb7 19. Be4 Bxc6 20. dxc6 d5 21. Bxd5 Nxd5 22. Qxd5 Rac8 {½-½ (22) Pappier,C (2497)-Percze,J (2498) ICCF email 2018}) 15... exd4 {[%emt 0:02:47]} 16. Rde1 {[%emt 0:04:25]} Nxd5 {[%emt 0:00:36][%cal Od5e3]} 17. Rxe7+ {[%emt 0:00:08]} Nxe7 {[%emt 0:00:11]} 18. Re1 {[%emt 0:00:07]} Be6 {[%emt 0:00:53]} 19. fxe6 {[%emt 0:05:39]} O-O-O $1 {[%emt 0:02:00]} 20. Bxe7 {[%emt 0:03:58]} Qxe7 {[%emt 0:00:41]} 21. Qxf7 {[%emt 0:10:17]} Rhe8 {[%emt 0:04:55]} (21... Qxh4 22. Kd1 Kb8 23. e7 $14) 22. Qf3 {[%emt 0:25:32]} d5 {[%emt 0:08:43]} (22... Qxh4 $2 23. Qc6+ Kb8 24. Qb6+ Kc8 25. Qxa6+ Kc7 26. Qa5+ Kb8 27. Qxb5+ Kc8 28. Qc6+ Kb8 29. Qb6+ Ka8 30. Kd1 Qg4+ 31. Re2 $18) (22... Kb8 $5 {[%cal Re7h4]}) 23. Qg4 {[%emt 0:03:32]} Kb7 {[%emt 0:08:18]} 24. Qxd4 {[%emt 0:16:13]} Rd6 {[%emt 0:01:14]} 25. Bg6 {[%emt 0:08:18][%mdl 1024] White has compensation.} Rf8 {[%emt 0:07:34]} 26. Qe3 {[%emt 0:04:17]} Rc8 {[%emt 0:05:50]} (26... Qxh4 $2 27. e7 Rh8 28. e8=Q $18) (26... Rf6 $5 27. Bf7 d4 $11) 27. h5 {[%emt 0:02:27]} Rcc6 {[%emt 0:03:25][%cal Rd6e6]} 28. Bf7 {[%emt 0:00:52]} d4 $132 {[%emt 0:02:08][%mdl 2048] Black is fighting back} 29. Qd3 {[%emt 0:02:30]} Kb6 {[%emt 0:08:09]} 30. a3 {[%emt 0:00:57]} Rc7 {[%emt 0:07:12]} 31. Kb1 {[%emt 0:01:18]} Ka7 {[%emt 0:00:08]} 32. Qg3 {[%emt 0:02:38]} b4 {[%emt 0:03:25][%cal Od4d3] White must now prevent ...d3!} 33. a4 {[%emt 0:02:41]} (33. Qxg7 bxa3 34. Rd1 (34. Qxh6 $2 Rb6 $19) 34... d3 35. Rxd3 Rxd3 36. cxd3 Qd6 $19) 33... b3 {[%emt 0:09:19]} 34. cxb3 {[%emt 0:00:26]} Rb6 {[%emt 0:04:29]} 35. Rd1 {[%emt 0:03:42]} Qc5 {[%emt 0:02:23] Chess con chili.} 36. Ka2 {[%emt 0:02:16]} Rcb7 {[%emt 0:03:13][%cal Bc7b7,Bb7e7,Be7e3][%mdl 32]} 37. Rd3 {[%emt 0:00:04]} Rb4 $2 {[%emt 0:00:16] [#]} (37... Qd5 $11) 38. Qf2 $2 {[%emt 0:02:47] [#] This move loses the game for White.} (38. Be8 $1 $16) 38... Rxa4+ $3 $19 {[%emt 0:00:46][%mdl 512]} 39. Kb1 {[%emt 0:00:29]} Rab4 {[%emt 0:00:17][%cal Ba4b4,Bb4b7,Bb7e7][%mdl 32]} 40. e7 {[%emt 0:01:01]} (40. Rf3 $17 {might work better.}) 40... Rxe7 {[%emt 0:01:08]} 41. Bc4 {[%emt 0:05:12]} Re3 {[%emt 0:06:31]} 42. Rd1 {[%emt 0:01:31]} Rb7 {[%emt 0:03:12]} (42... Qxh5 43. Rxd4 Qh1+ 44. Ka2 $11) 43. g4 {[%emt 0:08:23]} Rbe7 {[%emt 0:05:26]} 44. Qd2 {[%emt 0:01:29]} R3e4 {[%emt 0:00:28]} 45. Rc1 {[%emt 0:01:35]} Qe5 {[%emt 0:04:09]} (45... Rxg4 46. Bxa6 Qb6 47. Bd3 $17) 46. Ka2 {[%emt 0:00:03]} Rc7 {[%emt 0:07:53]} (46... Rxg4 $2 47. Qb4 Rb7 48. Qa3 $19) 47. Qb4 {[%emt 0:02:12][%cal Oc4d5]} Qc5 {[%emt 0:01:47] Against Bd5} ({Don't blunder} 47... Rxg4 $2 48. Re1 Re4 49. Rxe4 Qxe4 50. Qd6 $19) 48. Qa4 {[%emt 0:00:00][%cal Oc4a6]} Kb8 {[%emt 0:06:42]} ({Inferior is} 48... Rxg4 49. Bxa6 d3 50. Qxg4 $17) 49. Bd3 {[%emt 0:05:35]} Qxc1 {[%emt 0:00:21]} 50. Bxe4 {[%emt 0:00:02][%mdl 4096] Endgame KQR-KQB} Qc5 {[%emt 0:03:24] Against Qb4+. aiming for ...Re7.} 51. Qe8+ {[%emt 0:00:04]} Rc8 {[%emt 0:00:05]} 52. Qe6 {[%emt 0:01:45]} Rd8 {[%emt 0:00:44] And now ...d3 would win.} ({And not} 52... Qa5+ 53. Kb1 $11) 53. Kb1 $2 {[%emt 0:03:19]} (53. Bd3) 53... d3 {[%emt 0:01:47][%cal Bd4d3,Bd3d2][%mdl 32] ( -> ...d2)} 54. Qf7 {[%emt 0:05:27]} Qc7 {[%emt 0:00:20]} 55. Qf3 {[%emt 0:00:42]} d2 {[%emt 0:00:54]} 56. Bc2 {[%emt 0:00:03]} Qd6 {[%emt 0:00:41]} 57. Bd1 {[%emt 0:00:21]} Qd3+ {[%emt 0:01:10]} 58. Qxd3 {[%emt 0:00:05]} Rxd3 {[%emt 0:00:02]} 59. Kc2 {[%emt 0:00:06]} Rd5 {[%emt 0:00:05] Black is clearly winning.} 60. b4 {[%emt 0:00:26]} Kc7 {[%emt 0:00:03]} 61. Kc3 {[%emt 0:00:15]} Kd6 {[%emt 0:00:05] Weighted Error Value: White=0.65/Black=0.23 (precise)} 0-1